bitfinex-derivatives/quotes_BTCF0:USTF0_20250922
["timestamp","ask_amount","ask_price","bid_price","bid_amount"]
[1758575453022,0.73191539,112720.0,112710.0,0.41499742]
[1758575455124,0.73191539,112720.0,112710.0,0.1228378]
[1758575455327,0.73191539,112720.0,112710.0,0.41499742]
[1758575456016,0.73191539,112720.0,112710.0,0.41099742]
[1758575456628,0.73191539,112720.0,112710.0,0.1188378]
[1758575456829,0.73191539,112720.0,112710.0,0.41099742]
[1758575460123,0.43975577,112720.0,112710.0,0.41099742]
[1758575460324,0.73191539,112720.0,112710.0,0.41099742]
[1758575465233,0.43975577,112720.0,112710.0,0.41099742]
[1758575465431,0.01850517,112720.0,112710.0,1.33485847]
[1758575465731,0.38195,112730.0,112720.0,0.1238038]
[1758575465935,0.38275,112730.0,112720.0,1.52052304]
[1758575466236,0.38275,112730.0,112720.0,0.70812304]
[1758575466428,0.38275,112730.0,112720.0,1.52052304]
[1758575466830,0.38775,112730.0,112720.0,1.52152304]
[1758575467029,0.40275,112730.0,112720.0,1.52352304]
[1758575468424,0.40275,112730.0,112720.0,0.71112304]
[1758575468629,0.40275,112730.0,112720.0,1.52344304]
[1758575468830,0.39775,112730.0,112720.0,1.52244304]
[1758575469030,0.38475,112730.0,112720.0,1.52944304]
[1758575469540,0.38475,112730.0,112720.0,0.42496342]
[1758575469727,0.38475,112730.0,112720.0,1.52944304]
[1758575470843,0.38475,112730.0,112720.0,1.52940304]
[1758575473843,0.38475,112730.0,112720.0,0.71712304]
[1758575474044,0.38475,112730.0,112720.0,1.52932304]
[1758575474644,0.38475,112730.0,112720.0,0.1328038]
[1758575474942,0.67690962,112730.0,112720.0,1.52928304]
[1758575475746,0.67690962,112730.0,112720.0,0.71712304]
[1758575475942,0.67690962,112730.0,112720.0,1.52928304]
[1758575476648,0.67690962,112730.0,112720.0,1.23712342]
[1758575477746,0.67690962,112730.0,112720.0,1.52928304]
[1758575478248,0.67690962,112730.0,112720.0,1.52924304]
[1758575479345,0.93982962,112730.0,112720.0,0.1200938]
[1758575479643,2.15471853,112730.0,112720.0,0.0976538]
[1758575482146,2.06607253,112730.0,112720.0,0.0976538]
[1758575484952,2.06599253,112730.0,112720.0,0.0976538]
[1758575485249,1.77383291,112730.0,112720.0,0.0976538]
[1758575485646,1.86247871,112730.0,112720.0,0.0976538]
[1758575485844,2.15463833,112730.0,112720.0,0.0976538]
[1758575486653,1.86247871,112730.0,112720.0,0.0976538]
[1758575491862,0.75835909,112730.0,112720.0,0.1198738]
[1758575492047,1.86231871,112730.0,112720.0,0.1198738]
[1758575493749,1.05051871,112730.0,112720.0,0.1198738]
[1758575493956,1.86235871,112730.0,112720.0,0.1198738]
[1758575494555,1.95973427,112730.0,112720.0,0.1198738]
[1758575494950,1.95996313,112730.0,112720.0,0.1198738]
[1758575495555,0.41994215,112730.0,112720.0,0.1198738]
[1758575495759,0.40622215,112730.0,112720.0,0.3836038]
[1758575496057,0.40622215,112730.0,112720.0,0.77313898]
[1758575496255,0.40662215,112730.0,112720.0,0.77313898]
[1758575496457,0.40622215,112730.0,112720.0,0.77313898]
[1758575496859,0.40662215,112730.0,112720.0,0.77313898]
[1758575497659,0.40622215,112730.0,112720.0,0.77313898]
[1758575497847,0.40662215,112730.0,112720.0,0.77313898]
[1758575498751,0.40662215,112730.0,112720.0,1.58481898]
[1758575498961,0.38435,112730.0,112720.0,1.58481898]
[1758575499260,0.38435,112730.0,112720.0,1.33481898]
[1758575500461,0.38435,112730.0,112720.0,0.52313898]
[1758575500863,0.38435,112730.0,112720.0,1.33477898]
[1758575501058,0.38435,112730.0,112720.0,0.52313898]
[1758575501262,0.38435,112730.0,112720.0,1.33477898]
[1758575502663,0.38435,112730.0,112720.0,1.33473898]
[1758575503257,0.38435,112730.0,112720.0,0.1336038]
[1758575503452,0.38435,112730.0,112720.0,0.03122]
[1758575503453,0.87610098,112730.0,112720.0,0.03122]
[1758575503659,1.96001317,112730.0,112720.0,0.1198736]
[1758575504366,1.87136737,112730.0,112720.0,0.1198736]
[1758575506073,1.05980737,112730.0,112720.0,0.1198736]
[1758575507875,0.67027219,112730.0,112720.0,0.1198736]
[1758575509272,1.05980737,112730.0,112720.0,0.1198736]
[1758575513672,0.40670219,112730.0,112720.0,0.1336036]
[1758575514266,0.41958219,112730.0,112720.0,0.1336036]
[1758575515377,0.41958219,112730.0,112720.0,0.1198736]
[1758575516174,0.80911737,112730.0,112720.0,0.1198736]
[1758575516677,0.41958219,112730.0,112720.0,0.1198736]
[1758575524684,0.41958219,112730.0,112720.0,0.1334636]
[1758575526782,0.40670219,112730.0,112720.0,0.77299878]
[1758575527482,0.40630219,112730.0,112720.0,0.77299878]
[1758575527883,0.40670219,112730.0,112720.0,0.77299878]
[1758575532188,0.40670219,112730.0,112720.0,0.3834636]
[1758575532389,0.40670219,112730.0,112720.0,1.58399878]
[1758575535287,0.40670219,112730.0,112720.0,1.58395878]
[1758575538794,0.40670219,112730.0,112720.0,1.1944236]
[1758575539093,0.40670219,112730.0,112720.0,1.58395878]
[1758575539289,0.40670219,112730.0,112720.0,1.58391878]
[1758575546797,0.40670219,112730.0,112720.0,1.62391878]
[1758575546993,0.02475219,112730.0,112720.0,2.26345396]
[1758575547197,0.0024,112730.0,112720.0,1.88274427]
[1758575547394,0.0024,112730.0,112720.0,0.77299878]
[1758575547595,0.002,112730.0,112720.0,0.77299878]
[1758575547792,0.0024,112730.0,112720.0,0.3834636]
[1758575547998,0.0024,112730.0,112720.0,1.58375878]
[1758575548194,0.0024,112730.0,112720.0,1.13379878]
[1758575548395,0.0024,112730.0,112720.0,1.94455878]
[1758575548596,0.0024,112730.0,112720.0,1.13379878]
[1758575549690,0.0024,112730.0,112720.0,1.94451878]
[1758575549901,0.0024,112730.0,112720.0,1.13379878]
[1758575550102,0.0024,112730.0,112720.0,0.77299878]
[1758575550902,0.0024,112730.0,112720.0,1.58367878]
[1758575551204,0.0024,112730.0,112720.0,1.5927656]
[1758575551504,0.0024,112730.0,112720.0,0.77299878]
[1758575552006,0.0024,112730.0,112720.0,1.58363878]
[1758575552505,0.0024,112730.0,112720.0,1.94443878]
[1758575554803,0.0024,112730.0,112720.0,2.13890272]
[1758575555309,0.0024,112730.0,112720.0,2.14797621]
[1758575556107,0.0024,112730.0,112720.0,2.13890272]
[1758575559212,0.0024,112730.0,112720.0,2.14781452]
[1758575559512,0.0024,112730.0,112720.0,2.21781452]
[1758575561217,0.0024,112730.0,112720.0,1.89781452]
[1758575561610,0.38237,112750.0,112740.0,0.1238378]
[1758575561912,0.3617,112750.0,112740.0,1.51831692]
[1758575562313,0.3609,112750.0,112740.0,1.51831692]
[1758575562512,0.3613,112750.0,112740.0,1.51831692]
[1758575562715,0.3703,112750.0,112740.0,1.51931692]
[1758575562914,0.3753,112750.0,112740.0,1.52031692]
[1758575563208,0.3753,112750.0,112740.0,0.70983692]
[1758575563406,0.0145,112750.0,112740.0,0.70983692]
[1758575563606,0.0095,112750.0,112740.0,1.51923692]
[1758575564112,0.0095,112750.0,112740.0,0.70883692]
[1758575564313,0.0095,112750.0,112740.0,1.51919692]
[1758575564811,0.0005,112750.0,112740.0,1.52119692]
[1758575565414,0.0005,112750.0,112740.0,0.71083692]
[1758575565614,0.02197,112750.0,112740.0,0.71083692]
[1758575565803,0.02197,112750.0,112740.0,1.52115692]
[1758575567314,0.02197,112750.0,112740.0,0.71083692]
[1758575567615,0.02197,112750.0,112740.0,1.52111692]
[1758575569416,0.0005,112750.0,112740.0,1.52111692]
[1758575570918,0.0005,112750.0,112740.0,1.81111692]
[1758575571311,0.0005,112750.0,112740.0,1.52111692]
[1758575575323,0.0005,112750.0,112740.0,0.71083692]
[1758575575523,0.02214,112750.0,112740.0,0.9369578]
[1758575575721,0.02214,112750.0,112740.0,1.52095692]
[1758575577124,0.02214,112750.0,112740.0,1.52087692]
[1758575578920,0.0005,112750.0,112740.0,1.52087692]
[1758575581416,0.02214,112750.0,112740.0,0.71083692]
[1758575581621,0.38294,112750.0,112740.0,1.52079692]
[1758575581823,0.69735544,112750.0,112740.0,1.22879736]
[1758575582023,0.40535588,112750.0,112740.0,1.52079692]
[1758575582230,0.38294,112750.0,112740.0,1.52079692]
[1758575582623,0.0001,112750.0,112740.0,1.52079692]
[1758575582832,0.0005,112750.0,112740.0,1.52079692]
[1758575583034,0.0005,112750.0,112740.0,2.06279648]
[1758575583525,0.0005,112750.0,112740.0,1.77079692]
[1758575583934,0.0005,112750.0,112740.0,1.52079692]
[1758575584230,0.0005,112750.0,112740.0,1.79079692]
[1758575584433,0.0005,112750.0,112740.0,1.52079692]
[1758575584925,0.0005,112750.0,112740.0,1.81079692]
[1758575585128,0.0001,112750.0,112740.0,2.10279648]
[1758575585332,0.0005,112750.0,112740.0,2.35279648]
[1758575585724,0.0001,112750.0,112740.0,2.35279648]
[1758575585920,0.0005,112750.0,112740.0,2.71359648]
[1758575588126,0.0005,112750.0,112740.0,2.46359648]
[1758575589133,0.38324,112770.0,112760.0,0.125402]
[1758575589325,0.41375934,112770.0,112760.0,1.51920112]
[1758575589525,0.41415934,112770.0,112760.0,1.51920112]
[1758575590232,0.41915934,112770.0,112760.0,1.52020112]
[1758575590734,0.42315934,112770.0,112760.0,1.52120112]
[1758575590932,0.42315934,112770.0,112760.0,0.71140112]
[1758575591133,0.42315934,112770.0,112760.0,1.52120112]
[1758575591334,0.41915934,112770.0,112760.0,1.52020112]
[1758575591523,0.41715934,112770.0,112760.0,1.52020112]
[1758575592822,0.41715934,112770.0,112760.0,0.71040112]
[1758575593029,0.41715934,112770.0,112760.0,1.52012112]
[1758575593227,0.41715934,112770.0,112760.0,0.71040112]
[1758575593430,0.7091589,112770.0,112760.0,1.22812156]
[1758575595136,0.7091589,112770.0,112760.0,0.41840156]
[1758575595339,0.9591589,112770.0,112760.0,1.22808156]
[1758575596429,0.9728389,112770.0,112760.0,0.126402]
[1758575596630,0.9728389,112770.0,112760.0,1.21438156]
[1758575597535,0.9728389,112770.0,112760.0,1.22713156]
[1758575597736,0.68083934,112770.0,112760.0,1.22713156]
[1758575598642,0.9728389,112770.0,112760.0,1.22713156]
[1758575599232,0.41715934,112770.0,112760.0,1.51913112]
[1758575599643,0.41675934,112770.0,112760.0,1.51913112]
[1758575599844,0.41715934,112770.0,112760.0,1.51913112]
[1758575600543,0.39472742,112770.0,112760.0,1.51913112]
[1758575600843,0.4171072,112770.0,112760.0,1.51913112]
[1758575602740,0.4167072,112770.0,112760.0,1.51913112]
[1758575603043,0.4171072,112770.0,112760.0,1.51913112]
[1758575603948,0.4171072,112770.0,112760.0,0.935132]
[1758575604143,0.4171072,112770.0,112760.0,1.51913112]
[1758575608249,0.40781978,112770.0,112760.0,1.51913112]
[1758575608450,0.40791978,112770.0,112760.0,1.51913112]
[1758575608652,0.40831978,112770.0,112760.0,1.51913112]
[1758575610954,0.40791978,112770.0,112760.0,1.51913112]
[1758575611155,0.40831978,112770.0,112760.0,1.51913112]
[1758575611853,0.41704614,112770.0,112760.0,1.51913112]
[1758575612950,0.41704614,112770.0,112760.0,1.51877112]
[1758575613960,0.41704614,112770.0,112760.0,0.70949112]
[1758575614151,0.41704614,112770.0,112760.0,1.51877112]
[1758575614453,0.41704614,112770.0,112760.0,0.70949112]
[1758575614650,0.7090457,112770.0,112760.0,1.22677156]
[1758575614851,0.7221457,112770.0,112760.0,1.22677156]
[1758575615054,0.7221457,112770.0,112760.0,1.22673156]
[1758575615460,0.7221457,112770.0,112760.0,0.41749156]
[1758575615656,0.7221457,112770.0,112760.0,1.22673156]
[1758575616161,0.8107599,112770.0,112760.0,0.40474156]
[1758575616361,1.0607599,112770.0,112760.0,0.921982]
[1758575616556,1.1580019,112770.0,112760.0,0.921982]
[1758575618466,1.1580019,112770.0,112760.0,0.112742]
[1758575618662,1.1580019,112770.0,112760.0,0.921982]
[1758575619062,1.0693877,112770.0,112760.0,0.921982]
[1758575619264,0.8193877,112770.0,112760.0,0.921982]
[1758575620062,0.9080019,112770.0,112760.0,0.921982]
[1758575621160,0.51876034,112770.0,112760.0,0.921982]
[1758575621860,0.43014614,112770.0,112760.0,0.921982]
[1758575622165,0.51876034,112770.0,112760.0,0.921982]
[1758575625161,0.51876034,112770.0,112760.0,0.02412]
[1758575625361,0.9080019,112770.0,112760.0,0.02412]
[1758575626166,0.9080019,112770.0,112760.0,0.112742]
[1758575626369,0.9080019,112770.0,112760.0,0.02412]
[1758575627469,0.51876034,112770.0,112760.0,0.02412]
[1758575634472,0.51876034,112770.0,112760.0,0.112742]
[1758575634869,0.43014614,112770.0,112760.0,0.112742]
[1758575640268,0.43014614,112770.0,112760.0,0.51540356]
[1758575640476,0.41704614,112770.0,112760.0,0.51540356]
[1758575640682,0.41660824,112770.0,112760.0,0.51540356]
[1758575640869,0.41700824,112770.0,112760.0,0.51540356]
[1758575641175,0.41660824,112770.0,112760.0,0.51540356]
[1758575641380,0.41700824,112770.0,112760.0,0.51540356]
[1758575642873,0.05620824,112770.0,112760.0,0.76540356]
[1758575643268,0.05580824,112770.0,112760.0,0.76540356]
[1758575643778,0.41700824,112770.0,112760.0,0.76540356]
[1758575645064,0.05620824,112770.0,112760.0,0.76540356]
[1758575645373,0.02584188,112770.0,112760.0,1.49464512]
[1758575645674,0.02544188,112770.0,112760.0,1.57408356]
[1758575645869,0.0035,112770.0,112760.0,1.96332512]
[1758575646070,0.0035,112770.0,112760.0,2.32412512]
[1758575646275,0.0031,112770.0,112760.0,2.32412512]
[1758575646575,0.0035,112770.0,112760.0,2.32412512]
[1758575646779,0.0035,112770.0,112760.0,1.51544512]
[1758575646972,0.0035,112770.0,112760.0,2.32408512]
[1758575647275,0.0035,112770.0,112760.0,1.93484356]
[1758575649175,0.0035,112770.0,112760.0,1.12620356]
[1758575649375,0.0035,112770.0,112760.0,1.93480356]
[1758575650278,0.0009,112780.0,112770.0,0.1242442]
[1758575650468,0.0008,112780.0,112770.0,1.03348576]
[1758575650670,0.3609,112790.0,112780.0,0.1242363]
[1758575650872,0.3608,112790.0,112780.0,1.32203786]
[1758575651077,0.3608,112790.0,112780.0,1.34229741]
[1758575651471,0.3608,112790.0,112780.0,1.34225741]
[1758575652179,0.3688,112790.0,112780.0,1.34325741]
[1758575652473,1.0651236,112790.0,112780.0,0.14549585]
[1758575652679,1.0651236,112790.0,112780.0,0.13207585]
[1758575652680,0.67588204,112790.0,112780.0,0.13207585]
[1758575652875,1.0651236,112790.0,112780.0,0.13207585]
[1758575653282,0.67588204,112790.0,112780.0,0.13207585]
[1758575653579,1.14129282,112790.0,112780.0,0.13307585]
[1758575654379,1.14129282,112790.0,112780.0,0.94155585]
[1758575654572,1.14129282,112790.0,112780.0,0.13307585]
[1758575654774,1.14129282,112790.0,112780.0,0.94151585]
[1758575655282,1.14129282,112790.0,112780.0,0.13307585]
[1758575655575,1.14129282,112790.0,112780.0,0.94147585]
[1758575656979,1.14129282,112790.0,112780.0,0.13307585]
[1758575657474,1.14129282,112790.0,112780.0,0.94143585]
[1758575658079,0.75205126,112790.0,112780.0,0.94143585]
[1758575660384,0.75205126,112790.0,112780.0,0.94135585]
[1758575661585,0.75205126,112790.0,112780.0,0.13307585]
[1758575661885,0.75205126,112790.0,112780.0,0.94131585]
[1758575664589,0.75205126,112790.0,112780.0,0.95435585]
[1758575664788,0.75205126,112790.0,112780.0,0.94131585]
[1758575665088,0.84064966,112790.0,112780.0,0.94131585]
[1758575665289,0.84064966,112790.0,112780.0,0.13307585]
[1758575665490,0.84064966,112790.0,112780.0,0.94131585]
[1758575665689,0.84064966,112790.0,112780.0,0.94123585]
[1758575666797,0.84064966,112790.0,112780.0,0.13307585]
[1758575666980,0.84064966,112790.0,112780.0,0.94123585]
[1758575670293,0.84064966,112790.0,112780.0,0.13307585]
[1758575670483,0.84074966,112790.0,112780.0,0.94123585]
[1758575672782,0.03539204,112790.0,112780.0,2.30431741]
[1758575672985,0.0131,112790.0,112780.0,2.30431741]
[1758575673389,0.0135,112790.0,112780.0,2.30431741]
[1758575675392,0.0135,112790.0,112780.0,2.31303282]
[1758575675586,0.0135,112790.0,112780.0,2.30431741]
[1758575675587,0.0131,112790.0,112780.0,2.30431741]
[1758575675792,0.0135,112790.0,112780.0,2.30431741]
[1758575678596,0.0135,112790.0,112780.0,2.49841559]
[1758575679297,0.0135,112790.0,112780.0,1.89841559]
[1758575679595,0.0135,112790.0,112780.0,2.15841559]
[1758575688600,0.0095,112790.0,112780.0,2.15941559]
[1758575689900,0.0025,112790.0,112780.0,2.16541559]
[1758575690202,0.0025,112790.0,112780.0,2.45708546]
[1758575695306,1e-07,112790.0,112780.0,2.45708546]
[1758575697513,0.0009,112800.0,112790.0,0.1246285]
[1758575697700,0.0001,112810.0,112800.0,0.1246206]
[1758575697902,0.38453,112820.0,112810.0,0.1246128]
[1758575698209,0.40672035,112820.0,112810.0,0.41628267]
[1758575700104,0.41784015,112820.0,112810.0,0.41728267]
[1758575700305,0.48767577,112820.0,112810.0,1.22472267]
[1758575700505,0.46938542,112820.0,112810.0,0.41728267]
[1758575700710,0.39103,112820.0,112810.0,1.51639254]
[1758575700906,0.3682,112820.0,112810.0,0.70895254]
[1758575701109,0.39010963,112820.0,112810.0,1.51639254]
[1758575701309,0.38850963,112820.0,112810.0,1.51539254]
[1758575701504,0.40733963,112820.0,112810.0,0.41628267]
[1758575701921,0.38503,112820.0,112810.0,0.41628267]
[1758575702100,0.4073439,112820.0,112810.0,1.22368267]
[1758575702706,0.4073439,112820.0,112810.0,0.41628267]
[1758575702906,0.4073439,112820.0,112810.0,1.22368267]
[1758575703211,0.0455439,112820.0,112810.0,1.22668267]
[1758575703513,0.0455439,112820.0,112810.0,1.22768267]
[1758575704614,0.0455439,112820.0,112810.0,0.42028267]
[1758575704815,0.0455439,112820.0,112810.0,1.22764267]
[1758575705308,0.0455439,112820.0,112810.0,1.51931254]
[1758575705515,0.0227139,112820.0,112810.0,1.51931254]
[1758575706110,0.0227139,112820.0,112810.0,1.51927254]
[1758575706815,0.0227139,112820.0,112810.0,0.71195254]
[1758575707016,0.0455439,112820.0,112810.0,1.51923254]
[1758575707218,0.0004,112820.0,112810.0,1.51923254]
[1758575709718,0.0004,112820.0,112810.0,0.71195254]
[1758575709913,0.02323,112820.0,112810.0,0.71195254]
[1758575710118,0.02323,112820.0,112810.0,1.22748267]
[1758575710320,0.02323,112820.0,112810.0,0.42028267]
[1758575710526,0.02323,112820.0,112810.0,1.22748267]
[1758575711122,0.02323,112820.0,112810.0,1.51915254]
[1758575711522,0.02323,112820.0,112810.0,0.71195254]
[1758575711721,0.02323,112820.0,112810.0,1.51915254]
[1758575714427,0.02323,112820.0,112810.0,0.71195254]
[1758575714623,0.02323,112820.0,112810.0,0.9230028]
[1758575714624,0.28653,112820.0,112810.0,0.9230028]
[1758575714822,0.64733,112820.0,112810.0,1.21467267]
[1758575715020,0.66961161,112820.0,112810.0,1.21467267]
[1758575717626,0.66961161,112820.0,112810.0,1.21463267]
[1758575718728,0.66961161,112820.0,112810.0,1.22768267]
[1758575719724,0.66961161,112820.0,112810.0,0.42060267]
[1758575719924,0.64733,112820.0,112810.0,1.21455267]
[1758575720119,0.66961811,112820.0,112810.0,1.21455267]
[1758575721228,0.66961811,112820.0,112810.0,0.40755267]
[1758575721424,0.96128798,112820.0,112810.0,0.40755267]
[1758575721625,0.66961811,112820.0,112810.0,1.21455267]
[1758575722625,0.64833,112820.0,112810.0,1.21055267]
[1758575723226,0.64833,112820.0,112810.0,0.0233]
[1758575723424,0.1222828,112810.0,112800.0,0.0001]
[1758575723619,0.0337,112800.0,112790.0,0.0886985]
[1758575723825,0.0337,112800.0,112780.0,0.1103732]
[1758575723826,0.0337,112790.0,112780.0,0.1103732]
[1758575724126,0.78122746,112790.0,112780.0,0.8956032]
[1758575724328,0.70857688,112790.0,112780.0,0.9172332]
[1758575724527,0.70757688,112790.0,112780.0,0.9172332]
[1758575725225,0.70057688,112790.0,112780.0,0.9172332]
[1758575725932,0.70157688,112790.0,112780.0,0.9262332]
[1758575726927,0.40990701,112790.0,112780.0,0.9262332]
[1758575727132,0.67926987,112790.0,112780.0,1.21790307]
[1758575728730,0.45287185,112790.0,112780.0,1.23108307]
[1758575730327,0.74454172,112790.0,112780.0,1.23108307]
[1758575730524,0.75738172,112790.0,112780.0,0.1192732]
[1758575730726,0.84598022,112790.0,112780.0,0.81608]
[1758575731133,0.75738172,112790.0,112780.0,0.9046864]
[1758575731527,0.84598022,112790.0,112780.0,0.00904]
[1758575732530,1.09598022,112790.0,112780.0,0.00904]
[1758575734728,1.11851556,112790.0,112780.0,0.00904]
[1758575735535,1.92559556,112790.0,112780.0,0.00904]
[1758575736933,1.92559556,112790.0,112780.0,0.03168]
[1758575737127,1.90306022,112790.0,112780.0,0.03168]
[1758575737335,0.82683602,112790.0,112780.0,0.03168]
[1758575737634,1.11850589,112790.0,112780.0,0.03168]
[1758575738335,0.86850589,112790.0,112780.0,0.03168]
[1758575740638,0.96593824,112790.0,112780.0,0.03168]
[1758575742040,0.96593824,112790.0,112780.0,0.00904]
[1758575743339,1.21593824,112790.0,112780.0,0.00904]
[1758575748638,2.02301824,112790.0,112780.0,0.00904]
[1758575749347,1.21593824,112790.0,112780.0,0.00904]
[1758575749539,2.02301824,112790.0,112780.0,0.00904]
[1758575750246,1.21593824,112790.0,112780.0,0.00904]
[1758575750544,2.02301824,112790.0,112780.0,0.00904]
[1758575751345,1.21593824,112790.0,112780.0,0.00904]
[1758575751538,2.02297824,112790.0,112780.0,0.00904]
[1758575753147,2.05489023,112790.0,112780.0,0.00904]
[1758575757848,2.05785023,112790.0,112780.0,0.00304]
[1758575758147,2.05985023,112790.0,112780.0,0.00104]
[1758575760658,1.67074801,112790.0,112780.0,0.00104]
[1758575760851,2.05985023,112790.0,112780.0,0.00104]
[1758575761156,2.05985023,112790.0,112780.0,0.29104]
[1758575761852,2.05985023,112790.0,112780.0,0.3796464]
[1758575763059,2.05985023,112790.0,112780.0,0.29104]
[1758575763552,0.86374801,112790.0,112780.0,0.4021164]
[1758575763752,0.86374801,112790.0,112780.0,0.6659164]
[1758575763753,0.61374801,112790.0,112780.0,0.6659164]
[1758575763948,0.48039752,112790.0,112780.0,1.05501862]
[1758575764148,0.48079752,112790.0,112780.0,1.05501862]
[1758575765455,0.48079752,112790.0,112780.0,0.6659164]
[1758575767357,0.49470752,112790.0,112780.0,0.6659164]
[1758575767759,0.48079752,112790.0,112780.0,0.6659164]
[1758575769561,0.48079752,112790.0,112780.0,0.76501862]
[1758575770465,0.48079752,112790.0,112780.0,1.08501862]
[1758575771855,0.41087567,112790.0,112780.0,1.08501862]
[1758575772056,0.41087567,112790.0,112780.0,1.89193862]
[1758575772255,0.41047567,112790.0,112780.0,1.89193862]
[1758575772456,0.41087567,112790.0,112780.0,1.89193862]
[1758575773357,0.38835,112790.0,112780.0,1.89193862]
[1758575775061,0.38835,112790.0,112780.0,1.08501862]
[1758575775263,0.38835,112790.0,112780.0,1.89189862]
[1758575778060,0.38835,112790.0,112780.0,1.08501862]
[1758575778261,0.38835,112790.0,112780.0,1.89185862]
[1758575779064,0.02755,112790.0,112780.0,1.89185862]
[1758575780158,0.38835,112790.0,112780.0,1.08501862]
[1758575780349,0.38835,112790.0,112780.0,1.89181862]
[1758575780553,0.02755,112790.0,112780.0,1.89181862]
[1758575783763,0.02755,112790.0,112780.0,1.08501862]
[1758575784065,0.0065,112790.0,112780.0,1.89177862]
[1758575784568,0.0065,112790.0,112780.0,1.08501862]
[1758575784771,0.0065,112790.0,112780.0,1.89177862]
[1758575793874,0.0005,112790.0,112780.0,1.89077862]
[1758575794062,0.0005,112790.0,112780.0,1.89177862]
[1758575794569,0.0005,112790.0,112780.0,1.89173862]
[1758575794874,0.0005,112790.0,112780.0,1.08501862]
[1758575795075,0.0005,112790.0,112780.0,1.89173862]
[1758575796775,0.0005,112790.0,112780.0,1.08501862]
[1758575796970,0.0005,112790.0,112780.0,1.89173862]
[1758575799177,0.0005,112790.0,112780.0,1.08501862]
[1758575799376,0.02164,112790.0,112780.0,1.64173862]
[1758575800584,0.02164,112790.0,112780.0,1.83608476]
[1758575802473,0.0441051,112790.0,112780.0,1.02936476]
[1758575802670,0.0441051,112790.0,112780.0,1.83608476]
[1758575809682,0.0441051,112790.0,112780.0,2.19688476]
[1758575812382,0.02164,112790.0,112780.0,1.83608476]
[1758575812883,0.0005,112790.0,112780.0,1.83608476]
[1758575813282,0.3608,112810.0,112790.0,0.1257994]
[1758575813489,0.3447338,112810.0,112800.0,1.51591996]
[1758575813672,1e-07,112810.0,112800.0,2.22671996]
[1758575813881,0.40309108,112820.0,112810.0,0.1257837]
[1758575814183,0.40309108,112820.0,112810.0,0.76750788]
[1758575814682,0.40229108,112820.0,112810.0,0.76750788]
[1758575814988,0.40269108,112820.0,112810.0,1.57414788]
[1758575815377,0.40269108,112820.0,112810.0,1.57514788]
[1758575816185,0.40269108,112820.0,112810.0,0.76850788]
[1758575816587,0.41469108,112820.0,112810.0,1.57614788]
[1758575817277,0.69541526,112820.0,112810.0,0.76850788]
[1758575817680,0.69541526,112820.0,112810.0,1.57510788]
[1758575817880,0.69541526,112820.0,112810.0,0.76850788]
[1758575818080,0.69541526,112820.0,112810.0,1.57510788]
[1758575819788,0.40369108,112820.0,112810.0,1.57510788]
[1758575821588,0.69541526,112820.0,112810.0,1.57510788]
[1758575822187,0.69541526,112820.0,112810.0,0.76850788]
[1758575822397,0.69541526,112820.0,112810.0,1.57506788]
[1758575826589,0.40369108,112820.0,112810.0,1.57506788]
[1758575826889,0.69541526,112820.0,112810.0,1.57506788]
[1758575827492,0.40369108,112820.0,112810.0,1.57506788]
[1758575827790,0.69541526,112820.0,112810.0,1.57506788]
[1758575829692,0.69541526,112820.0,112810.0,1.57494788]
[1758575830690,1.25051944,112820.0,112810.0,0.4628337]
[1758575830888,1.63361657,112820.0,112810.0,1.2460237]
[1758575832896,1.61131944,112820.0,112810.0,1.2589237]
[1758575833093,1.63369237,112820.0,112810.0,1.2589237]
[1758575833292,0.42606401,112820.0,112810.0,1.55064788]
[1758575833492,0.69551526,112820.0,112810.0,1.57393788]
[1758575833694,0.69511526,112820.0,112810.0,1.57393788]
[1758575833996,0.69551526,112820.0,112810.0,1.57393788]
[1758575839188,0.71780692,112820.0,112810.0,1.57393788]
[1758575844505,0.04414274,112820.0,112810.0,1.57393788]
[1758575844707,0.04374274,112820.0,112810.0,1.57393788]
[1758575844905,0.04414274,112820.0,112810.0,1.57393788]
[1758575845200,0.04414274,112820.0,112810.0,1.57385788]
[1758575845711,0.40494274,112820.0,112810.0,1.57385788]
[1758575846604,0.42729274,112820.0,112810.0,0.76749788]
[1758575847108,0.42729274,112820.0,112810.0,1.57385788]
[1758575848406,0.40494274,112820.0,112810.0,1.57385788]
[1758575849804,0.40454274,112820.0,112810.0,1.57385788]
[1758575850005,0.40494274,112820.0,112810.0,1.57385788]
[1758575851211,0.40494274,112820.0,112810.0,0.76749788]
[1758575851507,0.42729274,112820.0,112810.0,0.4757737]
[1758575851709,0.42729274,112820.0,112810.0,1.57381788]
[1758575853813,0.40494274,112820.0,112810.0,1.57381788]
[1758575854006,0.04414274,112820.0,112810.0,1.57381788]
[1758575855808,0.04414274,112820.0,112810.0,0.4757737]
[1758575856008,0.35821692,112820.0,112810.0,0.76749788]
[1758575856213,0.71901692,112820.0,112810.0,1.57373788]
[1758575856510,0.42729274,112820.0,112810.0,1.57373788]
[1758575861006,0.04414274,112820.0,112810.0,1.57373788]
[1758575862709,0.40494274,112820.0,112810.0,1.67081091]
[1758575863308,0.40494274,112820.0,112810.0,1.67972959]
[1758575863712,0.04414274,112820.0,112810.0,1.67972959]
[1758575863913,0.40494274,112820.0,112810.0,1.67972959]
[1758575865718,0.38459166,112820.0,112810.0,1.67972959]
[1758575865914,0.38459166,112820.0,112810.0,1.69801813]
[1758575866114,0.3623,112820.0,112810.0,1.69801813]
[1758575866512,0.0015,112820.0,112810.0,1.69801813]
[1758575867321,0.0015,112820.0,112810.0,0.88285945]
[1758575867515,0.0015,112820.0,112810.0,1.68905945]
[1758575867913,0.0015,112820.0,112810.0,1.68901945]
[1758575869618,0.02385,112820.0,112810.0,0.88285945]
[1758575870120,0.02385,112820.0,112810.0,1.68897945]
[1758575870726,0.38465,112820.0,112810.0,1.68897945]
[1758575870917,0.02385,112820.0,112810.0,1.68897945]
[1758575872023,0.42073498,112820.0,112810.0,1.30018224]
[1758575872227,0.67073498,112820.0,112810.0,1.30018224]
[1758575872924,0.65694498,112820.0,112810.0,1.30018224]
[1758575873725,0.65694498,112820.0,112810.0,1.68897945]
[1758575875122,0.65694498,112820.0,112810.0,1.30018224]
[1758575875325,0.65694498,112820.0,112810.0,1.68897945]
[1758575876128,0.65694498,112820.0,112810.0,1.30018224]
[1758575876328,0.65694498,112820.0,112810.0,1.30014224]
[1758575881431,0.65694498,112820.0,112810.0,1.30010224]
[1758575881834,0.65694498,112820.0,112810.0,1.68889945]
[1758575882222,0.29614498,112820.0,112810.0,1.68889945]
[1758575882431,0.65694498,112820.0,112810.0,1.68889945]
[1758575885932,0.65694875,112820.0,112810.0,1.68889945]
[1758575892342,0.29614875,112820.0,112810.0,1.68889945]
[1758575892840,0.65694875,112820.0,112810.0,1.68889945]
[1758575897545,0.65694875,112820.0,112810.0,0.88285945]